bitfinex/quotes_BTCUSD_20251226
["timestamp","ask_amount","ask_price","bid_price","bid_amount"]
[1766768066023,0.2,87340.0,87329.0,0.70008]
[1766768066229,0.2,87340.0,87291.0,0.05727945]
[1766768066230,0.2,87330.0,87320.0,0.69840514]
[1766768066574,0.4353,87334.0,87321.0,0.01148]
[1766768068396,0.2,87340.0,87321.0,0.71156]
[1766768068599,0.45195,87339.0,87321.0,0.71156]
[1766768069313,0.01144911,87343.0,87321.0,0.71156]
[1766768069314,0.01144898,87344.0,87339.0,0.000549]
[1766768069605,0.01144872,87346.0,87330.0,0.70008]
[1766768069774,0.50619643,87349.0,87330.0,0.70008]
[1766768069961,0.51764475,87349.0,87330.0,0.70008]
[1766768070162,0.50619643,87349.0,87330.0,0.70008]
[1766768070754,0.04634643,87349.0,87330.0,0.70008]
[1766768073585,0.04634643,87349.0,87330.0,0.69262411]
[1766768074192,0.2,87350.0,87330.0,0.69262411]
[1766768074615,0.2,87350.0,87330.0,0.69223197]
[1766768074811,0.01074464,87349.0,87330.0,0.69223197]
[1766768075172,0.01074464,87348.0,87330.0,0.69223197]
[1766768075321,0.46771758,87355.0,87330.0,0.69223197]
[1766768075526,0.62089396,87354.0,87330.0,0.69223197]
[1766768075841,0.2,87350.0,87330.0,0.69223197]
[1766768076049,0.01074453,87349.0,87330.0,0.69223197]
[1766768076262,0.01074453,87348.0,87330.0,0.69223197]
[1766768076464,0.01074453,87347.0,87330.0,0.69223197]
[1766768076662,0.01074453,87346.0,87330.0,0.69223197]
[1766768076972,0.01074453,87345.0,87330.0,0.69223197]
[1766768077198,0.01074453,87344.0,87330.0,0.69223197]
[1766768077399,0.01074453,87343.0,87330.0,0.69223197]
[1766768077606,0.00010758,87355.0,87331.0,0.70008]
[1766768077806,0.00010758,87355.0,87350.0,0.00055]
[1766768077982,0.00010758,87355.0,87346.0,0.68601577]
[1766768080722,0.00010758,87355.0,87322.0,0.04584]
[1766768080723,0.575649,87346.0,87323.0,0.70008]
[1766768081042,0.575649,87346.0,87325.0,0.70008]
[1766768081043,0.0575649,87345.0,87325.0,0.70008]
[1766768081245,0.01144976,87338.0,87325.0,0.70008]
[1766768081442,0.05724881,87339.0,87326.0,0.71156]
[1766768081443,0.01144963,87339.0,87326.0,0.71156]
[1766768081787,0.05781396,87338.0,87327.0,0.70008]
[1766768081987,0.58275,87343.0,87327.0,0.71156]
[1766768082217,0.2,87340.0,87327.0,0.71156]
[1766768082408,0.7947495,87340.0,87327.0,0.711011]
[1766768082614,0.58979,87339.0,87327.0,0.01148]
[1766768082778,0.6825399,87339.0,87327.0,0.01148]
[1766768083098,0.6825399,87339.0,87321.0,0.70008]
[1766768083099,0.69398953,87339.0,87321.0,0.70008]
[1766768083306,0.69398953,87339.0,87322.0,0.01148]
[1766768083509,0.01144976,87338.0,87322.0,0.01148]
[1766768083804,0.6825399,87339.0,87322.0,0.01148]
[1766768083985,0.02376318,87338.0,87322.0,0.01148]
[1766768084202,0.03521294,87338.0,87322.0,0.79671]
[1766768084356,0.0114499,87337.0,87322.0,0.79671]
[1766768085014,0.01145003,87336.0,87322.0,0.79671]
[1766768085222,0.01145016,87335.0,87322.0,0.79671]
[1766768085418,0.0575649,87334.0,87322.0,0.79671]
[1766768086255,0.06901519,87334.0,87322.0,0.79671]
[1766768086484,0.0575649,87334.0,87322.0,0.78523]
[1766768086660,0.0575649,87334.0,87323.0,0.01148]
[1766768086821,0.0927499,87333.0,87323.0,0.01148]
[1766768087018,0.7258499,87333.0,87323.0,0.01148]
[1766768087421,0.7258499,87333.0,87324.0,0.01148]
[1766768087618,0.7258499,87333.0,87325.0,0.01148]
[1766768087917,0.7258499,87333.0,87316.0,0.78523]
[1766768087918,0.7258499,87333.0,87326.0,0.01148]
[1766768088113,0.02376318,87332.0,87326.0,0.01148]
[1766768088524,0.02321418,87332.0,87326.0,0.00402342]
[1766768089543,0.01073438,87331.0,87326.0,0.00402342]
[1766768089747,0.02321418,87332.0,87326.0,0.00402342]
[1766768089748,0.01073438,87330.0,87326.0,0.00402342]
[1766768089948,0.01073438,87329.0,87326.0,0.00402342]
[1766768090128,0.01073438,87328.0,87326.0,0.00402342]
[1766768090331,0.02321418,87332.0,87326.0,0.00402342]
[1766768090332,0.01073438,87327.0,87326.0,0.00402342]
[1766768091360,0.01073438,87327.0,87326.0,0.0043822]
[1766768091742,0.06829928,87327.0,87326.0,0.0043822]
[1766768091944,0.06829928,87327.0,87292.0,0.78523]
[1766768091945,0.660879,87326.0,87292.0,0.78523]
[1766768092182,0.660879,87326.0,87294.0,0.78523]
[1766768092183,0.66033,87318.0,87294.0,0.78523]
[1766768092398,0.66533,87316.0,87296.0,0.78523]
[1766768092607,0.01073438,87315.0,87296.0,0.78523]
[1766768092852,0.66533,87316.0,87296.0,0.78523]
[1766768092853,0.09834082,87314.0,87296.0,0.78523]
[1766768093057,0.67606438,87313.0,87296.0,0.78523]
[1766768093236,0.01073438,87312.0,87297.0,0.01148]
[1766768093434,0.01073438,87311.0,87297.0,0.01148]
[1766768093682,0.01073438,87310.0,87297.0,0.01148]
[1766768093843,0.01073438,87309.0,87297.0,0.79671]
[1766768094042,0.01073438,87308.0,87297.0,0.79671]
[1766768094240,0.01073438,87307.0,87297.0,0.79671]
[1766768094451,0.01073438,87306.0,87297.0,0.78523]
[1766768094666,0.01073438,87305.0,87297.0,0.78523]
[1766768094878,0.01073438,87304.0,87298.0,0.01148]
[1766768095076,0.01073438,87303.0,87298.0,0.01148]
[1766768095363,0.66533,87313.0,87299.0,0.78523]
[1766768096273,0.66533,87313.0,87300.0,0.01148]
[1766768096465,0.66533,87313.0,87300.0,0.79671]
[1766768100022,0.66533,87313.0,87301.0,0.00619928]
[1766768100235,0.66533,87313.0,87301.0,0.00091856]
[1766768100443,0.751863,87313.0,87301.0,0.00091856]
[1766768101967,0.03441371,87322.0,87302.0,0.78523]
[1766768102211,0.03441371,87322.0,87301.0,0.00091856]
[1766768102212,0.06182965,87328.0,87304.0,0.78523]
[1766768102425,0.77731965,87331.0,87304.0,0.78523]
[1766768102644,0.73101094,87329.0,87304.0,0.78523]
[1766768102821,0.71956,87327.0,87304.0,0.78523]
[1766768102995,0.01145108,87328.0,87293.0,0.78523]
[1766768102996,0.71956,87319.0,87293.0,0.78523]
[1766768103202,0.71956,87319.0,87292.0,5.343e-05]
[1766768103203,0.71956,87317.0,87295.0,0.78523]
[1766768106636,0.73508,87312.0,87295.0,0.78523]
[1766768106836,0.000549,87295.0,87292.0,5.343e-05]
[1766768107041,0.000549,87295.0,87293.0,0.01148]
[1766768107271,0.000549,87295.0,87293.0,4e-06]
[1766768107486,0.000549,87295.0,87292.0,4.3e-07]
[1766768107639,0.000549,87295.0,87291.0,4.3e-07]
[1766768107845,0.705389,87295.0,87287.0,0.0004]
[1766768108051,0.705389,87295.0,87288.0,75.23275098]
[1766768108672,0.01070788,87294.0,87288.0,75.23275098]
[1766768108881,0.01070788,87294.0,87288.0,75.21573493]
[1766768108882,0.76884076,87290.0,87288.0,75.21573493]
[1766768109112,0.06873603,87291.0,87288.0,74.72013493]
[1766768109113,0.71156,87289.0,87288.0,74.72013493]
[1766768109424,0.69600185,87289.0,87288.0,74.72013493]
[1766768109610,0.77789423,87289.0,87288.0,74.72013493]
[1766768109834,0.77789423,87289.0,87288.0,74.47118753]
[1766768110444,0.77789423,87289.0,87288.0,74.46250753]
[1766768110735,0.7886044,87289.0,87288.0,74.46250753]
[1766768111240,0.781165,87289.0,87288.0,74.46250753]
[1766768112468,0.781165,87289.0,87288.0,74.21470753]
[1766768114202,0.77045483,87289.0,87288.0,74.21470753]
[1766768114402,0.78116194,87289.0,87288.0,74.21470753]
[1766768115301,0.77045483,87289.0,87288.0,74.21470753]
[1766768115449,0.78116213,87289.0,87288.0,74.21470753]
[1766768116246,0.78116213,87289.0,87288.0,74.2072473]
[1766768119087,0.69926975,87289.0,87288.0,74.2072473]
[1766768119946,0.68377403,87289.0,87288.0,74.2072473]
[1766768120159,0.21145344,87310.0,87288.0,74.2072473]
[1766768120160,0.01145409,87305.0,87289.0,0.93483]
[1766768120375,0.01145488,87299.0,87288.0,74.2072473]
[1766768120565,0.81903,87297.0,87288.0,74.2072473]
[1766768120767,0.01145409,87305.0,87288.0,74.2072473]
[1766768120910,0.83048409,87305.0,87288.0,75.1420773]
[1766768121113,0.2,87300.0,87288.0,75.1420773]
[1766768122028,0.01145422,87304.0,87288.0,75.1420773]
[1766768122267,0.83631422,87304.0,87288.0,75.1420773]
[1766768122758,0.82486,87304.0,87288.0,75.1420773]
[1766768123362,0.83631422,87304.0,87288.0,75.1420773]
[1766768123721,0.82486,87304.0,87288.0,75.1420773]
[1766768124344,0.95055946,87304.0,87288.0,75.1420773]
[1766768124546,0.2,87300.0,87288.0,75.1420773]
[1766768124761,0.93910524,87304.0,87288.0,75.1420773]
[1766768125643,0.65715599,87506.0,87289.0,0.93483]
[1766768125644,0.06182965,87310.0,87289.0,0.93483]
[1766768125818,0.01145344,87310.0,87289.0,0.93483]
[1766768126117,0.83422,87312.0,87289.0,0.93483]
[1766768126118,0.86863726,87312.0,87289.0,0.93483]
[1766768126318,0.89604965,87312.0,87289.0,0.93483]
[1766768126729,0.10334834,87311.0,87289.0,0.93483]
[1766768127712,0.83843,87311.0,87289.0,0.93483]
[1766768127913,0.84988331,87311.0,87289.0,0.93483]
[1766768128252,0.83843,87311.0,87289.0,0.93483]
[1766768129298,0.83816584,87311.0,87289.0,0.93483]
[1766768129979,0.89999549,87311.0,87289.0,0.93483]
[1766768130179,0.06182965,87310.0,87289.0,0.97855606]
[1766768130746,0.06182965,87307.0,87289.0,0.93483]
[1766768131292,1.04404,87310.0,87289.0,0.93483]
[1766768131293,0.06182965,87306.0,87289.0,0.93483]
[1766768131512,0.06182965,87307.0,87289.0,0.93483]
[1766768132104,0.07255484,87306.0,87289.0,0.93483]
[1766768132330,0.01072519,87305.0,87289.0,0.93483]
[1766768132513,0.01072519,87304.0,87289.0,0.93483]
[1766768132716,0.15463444,87306.0,87289.0,0.93483]
[1766768132717,0.01072519,87303.0,87289.0,0.93483]
[1766768132934,0.01072519,87302.0,87289.0,0.93483]
[1766768133098,0.01072519,87301.0,87289.0,0.93483]
[1766768133317,0.01072519,87300.0,87289.0,0.93483]
[1766768133524,0.21072519,87300.0,87290.0,0.01152]
[1766768133745,0.86753519,87299.0,87290.0,0.01152]
[1766768133976,0.01072519,87298.0,87290.0,0.01152]
[1766768134923,0.01072519,87297.0,87290.0,0.94635]
[1766768135084,0.01072519,87296.0,87290.0,0.94635]
[1766768135280,0.06182965,87304.0,87290.0,0.94635]
[1766768135495,0.06182965,87305.0,87290.0,0.94635]
[1766768135711,0.06182965,87305.0,87288.0,73.16155788]
[1766768135712,0.99945098,87289.0,87288.0,73.16155788]
[1766768135915,0.98872579,87289.0,87288.0,72.81817781]
[1766768136113,0.98872579,87289.0,87288.0,72.53105263]
[1766768136314,0.99872579,87289.0,87288.0,70.40194177]
[1766768136515,1.22240756,87289.0,87288.0,65.31115641]
[1766768136714,1.20810226,87289.0,87288.0,65.15973232]
[1766768137005,1.20263157,87289.0,87288.0,64.83458386]
[1766768137219,0.15541393,87289.0,87288.0,64.77592509]
[1766768137456,0.55852993,87289.0,87288.0,62.90911046]
[1766768137636,0.55542317,87289.0,87288.0,62.8746673]
[1766768137855,0.55026437,87289.0,87288.0,62.80578098]
[1766768138061,0.54734011,87289.0,87288.0,58.76166048]
[1766768138276,0.54734011,87289.0,87288.0,58.45081732]
[1766768138479,0.54734011,87289.0,87288.0,58.35322836]
[1766768138480,0.53556544,87289.0,87288.0,58.35322836]
[1766768138676,0.53556544,87289.0,87288.0,57.70791701]
[1766768138898,0.53556544,87289.0,87288.0,57.6091804]
[1766768139071,0.53556544,87289.0,87288.0,56.96581217]
[1766768139262,0.53556544,87289.0,87288.0,55.78496901]
[1766768139263,0.54556544,87289.0,87288.0,55.78496901]
[1766768139582,0.53556544,87289.0,87288.0,54.64691552]
[1766768139746,0.53556544,87289.0,87288.0,54.46594224]
[1766768139971,0.53556544,87289.0,87288.0,54.33482908]
[1766768140238,0.53556544,87289.0,87288.0,53.57160862]
[1766768140426,0.53556544,87289.0,87288.0,51.35249446]
[1766768140629,0.53556544,87289.0,87288.0,51.31805486]
[1766768140855,0.53556544,87289.0,87288.0,51.21275486]
[1766768141231,0.51957444,87289.0,87288.0,50.64107449]
[1766768141451,0.51957444,87289.0,87288.0,50.26042802]
[1766768141647,0.46229346,87289.0,87288.0,50.25704281]
[1766768141814,0.46229346,87289.0,87288.0,50.24105181]
[1766768142012,0.44462371,87289.0,87288.0,50.02105181]
[1766768142633,0.44462371,87289.0,87288.0,49.98862567]
[1766768142841,0.43685608,87289.0,87288.0,49.98862567]
[1766768143057,0.43478282,87289.0,87288.0,49.98847961]
[1766768143259,0.43313992,87289.0,87288.0,49.98847961]
[1766768143575,0.43214611,87289.0,87288.0,49.98847961]
[1766768143781,0.00967008,87289.0,87288.0,49.98847961]
[1766768143981,0.2,87300.0,87288.0,49.86243756]
[1766768143982,0.47273196,87297.0,87288.0,49.86243756]
[1766768144205,0.03442824,87294.0,87288.0,49.86243756]
[1766768144406,0.03075552,87293.0,87288.0,49.86243756]
[1766768145263,0.41106,87290.0,87288.0,49.82666708]
[1766768145490,0.08803396,87293.0,87288.0,48.86972608]
[1766768145491,0.05728098,87289.0,87288.0,48.86972608]
[1766768145820,0.05728098,87289.0,87288.0,48.31823029]
[1766768146005,0.2,87290.0,87288.0,48.30669641]
[1766768146205,0.03849762,87289.0,87288.0,48.30669641]
[1766768146863,0.07293139,87289.0,87288.0,48.30669641]
[1766768147313,0.06551515,87289.0,87288.0,48.22169641]
[1766768147502,0.07621841,87289.0,87288.0,48.22169641]
[1766768148047,0.07621841,87289.0,87288.0,47.69675484]
[1766768148451,0.07621841,87289.0,87288.0,47.11241736]
[1766768148748,0.07621841,87289.0,87288.0,47.09002886]
[1766768148927,0.07621841,87289.0,87288.0,46.46517521]
[1766768149174,0.07621841,87289.0,87288.0,46.43073749]
[1766768150115,0.07621841,87289.0,87288.0,45.77268794]
[1766768150953,0.07621841,87289.0,87288.0,45.2483654]
[1766768151773,0.07621841,87289.0,87288.0,44.64053727]
[1766768151976,0.08621841,87289.0,87288.0,39.03553628]
[1766768152154,0.08621841,87289.0,87288.0,38.59142712]
[1766768152397,0.09220744,87289.0,87288.0,27.31519614]
[1766768152559,0.09220744,87289.0,87288.0,21.6628961]
[1766768152757,0.09220744,87289.0,87288.0,15.24988547]
[1766768153020,0.09220744,87289.0,87288.0,9.30976296]
[1766768153021,0.15676638,87289.0,87288.0,9.30976296]
[1766768153306,0.15676638,87289.0,87288.0,3.00222502]
[1766768153307,0.22211784,87289.0,87288.0,3.00222502]
[1766768153482,0.18365664,87289.0,87288.0,1.69009907]
[1766768153685,0.18365664,87289.0,87288.0,0.3445714]
[1766768153686,0.19647334,87289.0,87288.0,0.3445714]
[1766768153887,0.2,87220.0,87214.0,0.095863]
[1766768154086,1.28255,87229.0,87215.0,0.01152]
[1766768154265,1.28255,87229.0,87214.0,0.00035747]
[1766768154266,0.2,87220.0,87214.0,0.00035747]
[1766768154467,1.26972,87229.0,87212.0,0.00200846]
[1766768154671,1.25938,87227.0,87212.0,0.00200846]
[1766768154918,0.00035841,87229.0,87212.0,1.39337846]
[1766768155070,0.2,87240.0,87214.0,1.39137]
[1766768155281,0.01068989,87239.0,87214.0,1.39172841]
[1766768155499,0.01068989,87238.0,87214.0,1.39172841]
[1766768155704,0.01068989,87237.0,87214.0,1.39172841]
[1766768156026,0.2,87250.0,87228.0,1.39137]
[1766768156236,0.2,87250.0,87214.0,0.00035841]
[1766768156237,0.0106858,87249.0,87230.0,1.39137]
[1766768156427,0.2,87250.0,87230.0,1.39137]
[1766768157233,0.0106846,87249.0,87230.0,1.39137]
[1766768157393,0.0106846,87248.0,87230.0,1.39137]
[1766768157589,0.0106846,87247.0,87230.0,1.39137]
[1766768157775,0.0106846,87246.0,87230.0,1.37339809]
[1766768157973,0.0106846,87245.0,87230.0,1.37339809]
[1766768158178,1.27753,87249.0,87230.0,1.37339809]
[1766768158379,1.27396891,87248.0,87230.0,1.37339809]
[1766768158871,1.27396891,87248.0,87229.0,0.0574]
[1766768159232,0.2,87240.0,87229.0,0.0574]
[1766768159612,1.27048,87239.0,87229.0,0.0574]
[1766768159820,1.27048,87239.0,87230.0,0.01152]
[1766768160476,1.25777,87249.0,87230.0,0.01152]
[1766768160796,0.2,87240.0,87231.0,0.01152]
[1766768161008,0.2,87240.0,87232.0,0.01152]
[1766768161161,1.43496,87240.0,87218.0,1.39137]
[1766768161372,0.2,87230.0,87219.0,0.01152]
[1766768161912,0.2,87230.0,87214.0,0.04623841]
[1766768161913,1.42625,87230.0,87220.0,0.01152]
[1766768162328,1.42625,87230.0,87214.0,0.00035841]
[1766768162531,0.2,87220.0,87202.0,1.39137]
[1766768162732,0.20035819,87220.0,87212.0,0.011]
[1766768162941,0.20035819,87220.0,87213.0,0.01152]
[1766768163147,0.20035819,87220.0,87213.0,0.0105]
[1766768163794,1.20183,87230.0,87213.0,0.0105]
[1766768163795,0.2,87230.0,87213.0,0.0105]
[1766768163991,0.2,87230.0,87213.0,0.01060757]
[1766768164607,1.20183,87237.0,87214.0,1.39137]
[1766768165050,0.2,87230.0,87214.0,1.39137]
[1766768165381,0.2,87230.0,87215.0,0.01152]
[1766768165582,0.2,87230.0,87213.0,0.00010757]
[1766768165811,0.2,87230.0,87214.0,0.01152]
[1766768167384,0.2,87220.0,87200.0,0.04612]
[1766768167626,0.20010741,87220.0,87201.0,0.01152]
[1766768168241,1.39208741,87220.0,87201.0,0.01152]
[1766768168444,0.20010741,87220.0,87202.0,0.02619324]
[1766768168647,0.20010741,87220.0,87203.0,1.39137]
[1766768168648,0.00010741,87220.0,87203.0,1.39137]
[1766768169029,0.20010741,87220.0,87203.0,1.39137]
[1766768169970,1.39208741,87220.0,87201.0,0.01152]
[1766768170217,1.19208741,87220.0,87201.0,0.01152]
[1766768170419,1.19208741,87220.0,87202.0,1.39137]
[1766768170420,0.01069202,87219.0,87202.0,1.39137]
[1766768170619,0.01069202,87218.0,87202.0,1.39137]
[1766768170820,0.01069202,87217.0,87202.0,1.39137]
[1766768171022,0.01069202,87216.0,87202.0,1.39137]
[1766768171153,0.01069202,87215.0,87202.0,1.39137]
[1766768171354,0.01069202,87214.0,87201.0,0.01152]
[1766768171596,0.0065534,87213.0,87201.0,0.01152]
[1766768171753,1.19198,87219.0,87201.0,0.01152]
[1766768171973,0.20010741,87220.0,87202.0,1.39137]
[1766768172334,1.39208741,87220.0,87201.0,0.01152]
[1766768172656,0.20010741,87220.0,87202.0,1.39137]
[1766768173193,0.20010741,87220.0,87201.0,0.01152]
[1766768173194,1.19198,87219.0,87201.0,0.01152]
[1766768173395,1.19198,87219.0,87166.0,0.01147236]
[1766768173396,1.19198,87219.0,87170.0,0.06343577]
[1766768173740,1.19198,87219.0,87190.0,0.45216505]
[1766768173945,1.19198,87219.0,87191.0,1.40289]
[1766768174341,1.19198,87219.0,87200.0,0.45216505]
[1766768174551,1.19198,87219.0,87201.0,0.01152]
[1766768175772,0.2,87210.0,87201.0,0.01152]
[1766768175992,0.2,87210.0,87191.0,0.04592]
[1766768176172,0.2,87210.0,87203.0,0.00025166]
[1766768176586,0.00010741,87220.0,87172.0,1.41193]
[1766768176587,0.2,87200.0,87172.0,1.41193]
[1766768176784,1.19179,87209.0,87181.0,1.41193]
[1766768176992,1.19179,87209.0,87183.0,1.41193]
[1766768177412,1.19179,87209.0,87190.0,0.44011505]
[1766768177614,1.19179,87209.0,87173.0,0.04592]
[1766768177615,1.19179,87209.0,87199.0,0.45216505]
[1766768177813,1.191242,87209.0,87199.0,0.46368505]
[1766768178383,0.2,87210.0,87199.0,0.46368505]
[1766768179015,0.2,87210.0,87200.0,1.41193]
[1766768179211,0.2,87210.0,87200.0,1.40446158]
[1766768179636,0.2,87210.0,87190.0,0.45216505]
[1766768179637,0.000549,87200.0,87195.0,0.01152]
[1766768179847,0.2,87210.0,87195.0,0.01152]
[1766768180180,0.2,87210.0,87196.0,1.41193]
[1766768180386,0.2,87210.0,87195.0,0.01152]
[1766768180597,1.18617,87209.0,87195.0,0.01152]
[1766768180803,1.18617,87209.0,87180.0,0.04592]
[1766768180804,0.000549,87195.0,87194.0,0.01105]
[1766768181009,0.2,87200.0,87176.0,1.41193]
[1766768181213,0.2,87200.0,87180.0,0.45216505]
[1766768181825,1.3743,87200.0,87176.0,1.41193]
[1766768182034,0.2,87190.0,87181.0,0.01152]
[1766768182243,0.2,87190.0,87181.0,0.00552]
[1766768182812,0.2,87190.0,87177.0,0.01152]
[1766768183048,0.2,87190.0,87169.0,0.04592]
[1766768183049,1.35743,87190.0,87173.0,0.01152]
[1766768183233,1.35753735,87190.0,87173.0,0.01152]
[1766768183431,1.15753735,87190.0,87173.0,0.01152]
[1766768183639,1.15753735,87190.0,87174.0,1.41193]
[1766768183640,0.01070584,87189.0,87174.0,1.41193]
[1766768183903,0.01070584,87188.0,87173.0,0.01152]
[1766768184107,0.01070584,87187.0,87173.0,0.01152]
[1766768184323,0.01070584,87186.0,87173.0,0.01152]
[1766768184537,0.01070584,87185.0,87168.0,0.0001]
[1766768184733,1.15743,87188.0,87172.0,0.01134]
[1766768184734,0.01070584,87184.0,87172.0,0.01134]
[1766768184939,0.01070584,87183.0,87172.0,0.01134]
[1766768185157,0.01070584,87183.0,87168.0,0.0001]
[1766768185158,0.01070584,87182.0,87168.0,0.0001]
[1766768185358,0.01070584,87182.0,87125.0,0.04]
[1766768185359,0.000549,87172.0,87153.0,1.40594]
[1766768185487,0.000549,87172.0,87150.0,0.01152]
[1766768185488,1.16239584,87171.0,87150.0,0.01152]
[1766768185693,1.15169,87169.0,87150.0,0.67504307]
[1766768185893,1.15169,87167.0,87150.0,0.67504307]
[1766768186076,0.01070584,87166.0,87150.0,0.67504307]
[1766768186279,0.01070584,87165.0,87150.0,0.67504307]
[1766768186474,1.14015,87163.0,87150.0,0.01152]
[1766768186740,0.01070584,87162.0,87151.0,1.41193]
[1766768186912,1.12874,87178.0,87151.0,1.41193]
[1766768186913,0.01015584,87161.0,87151.0,1.41193]
[1766768187122,1.12874,87178.0,87151.0,1.41193]
[1766768187498,1.12874,87178.0,87150.0,0.67504307]
[1766768187499,1.12874,87178.0,87150.0,0.66362307]
[1766768187702,1.12884733,87178.0,87150.0,0.66362307]
[1766768187900,1.12884733,87178.0,87177.0,0.00081788]
[1766768188131,1.11743,87169.0,87151.0,0.00031]
[1766768188331,1.11743,87169.0,87150.0,0.00072]
[1766768188529,1.11743,87169.0,87150.0,0.01152]
[1766768189839,0.2,87170.0,87113.0,0.0002]
[1766768189840,1.10624,87149.0,87119.0,1.41193]
[1766768190038,1.10624,87149.0,87113.0,0.0002]
[1766768190039,1.10624,87149.0,87120.0,0.01152]
[1766768190301,0.000549,87150.0,87131.0,1.41193]
[1766768190485,1.10624,87159.0,87122.0,1.41193]
[1766768191078,1.10634729,87159.0,87122.0,1.41193]
[1766768191289,1.10634729,87159.0,87120.0,0.01152]
[1766768191484,1.10634729,87159.0,87120.0,1.42345]
[1766768191620,1.10634729,87159.0,87120.0,0.67504307]
[1766768191963,1.11299,87157.0,87120.0,0.01152]
[1766768192268,1.11299,87149.0,87121.0,0.01152]
[1766768192970,1.11299,87149.0,87122.0,1.41193]
[1766768193200,1.11299,87149.0,87121.0,0.01152]
[1766768193201,1.11309729,87159.0,87139.0,0.66352307]
[1766768193312,1.11309729,87159.0,87140.0,0.01152]
[1766768193516,1.11309729,87159.0,87140.0,0.67504307]
[1766768193931,1.11309729,87159.0,87140.0,0.01152]
[1766768194139,1.11309729,87159.0,87131.0,1.41193]
[1766768194347,1.11309729,87159.0,87113.0,0.0002]
[1766768194348,1.11309729,87159.0,87132.0,0.01152]
[1766768194604,1.11309729,87159.0,87128.0,0.01152]
[1766768195025,1.11309729,87159.0,87130.0,2.07545307]
[1766768196407,1.11309729,87159.0,87130.0,1.41193]
[1766768197210,1.07814362,87159.0,87130.0,1.41193]
[1766768197348,1.07814362,87159.0,87128.0,0.12576524]
[1766768197549,1.07814362,87159.0,87128.0,0.01152]
[1766768198376,1.07814362,87159.0,87128.0,0.00552]
[1766768198977,0.2,87160.0,87129.0,1.41193]
[1766768198978,1.0434,87157.0,87129.0,1.41193]
[1766768199375,1.05406596,87156.0,87129.0,1.41228819]
[1766768199582,0.2,87160.0,87129.0,1.41228819]
[1766768199583,1.0434,87154.0,87150.0,2.1e-06]
[1766768199776,0.2,87160.0,87129.0,0.00035819]
[1766768199777,1.04315,87149.0,87129.0,0.00035819]
[1766768199993,1.04315,87149.0,87106.0,1.41193]
[1766768199994,0.2,87140.0,87106.0,1.41193]
[1766768200166,0.2,87140.0,87096.0,0.04596]
[1766768200167,1.05346596,87139.0,87113.0,1.41213]
[1766768200383,0.01066596,87138.0,87113.0,1.41213]
[1766768200588,0.01066596,87137.0,87113.0,1.41213]
[1766768200793,0.01066596,87136.0,87113.0,1.41213]
[1766768200996,1.0428,87139.0,87113.0,1.41213]
[1766768200997,0.01066596,87135.0,87113.0,1.41213]
[1766768201174,0.01066596,87134.0,87113.0,1.41213]
[1766768201374,0.01066596,87133.0,87113.0,1.41213]
[1766768201661,1.0428,87139.0,87113.0,0.0002]
[1766768202074,1.0428,87129.0,87104.0,1.41193]
[1766768202305,1.0428,87129.0,87100.0,0.01152]
[1766768202776,1.0428,87129.0,87101.0,1.41193]
[1766768203563,1.0428,87129.0,87100.0,0.01152]
[1766768203939,1.0428,87129.0,87091.0,1.45412]
[1766768203940,1.03235,87119.0,87091.0,0.01152]
[1766768204362,1.03235,87119.0,87083.0,1.45412]
[1766768204363,1.03235,87109.0,87084.0,0.01152]
[1766768204895,1.03235,87109.0,87084.0,0.00107]
[1766768205058,1.03235,87109.0,87074.0,0.01152]
[1766768205262,0.011,87122.0,87051.0,1.47054]
[1766768205263,1.022,87099.0,87051.0,1.47054]
[1766768205517,1.02235885,87099.0,87066.0,1.47054]
[1766768205713,1.02235885,87099.0,87070.0,0.66352307]
[1766768205714,0.00015885,87099.0,87070.0,0.66352307]
[1766768205890,0.2,87120.0,87081.0,1.47054]
[1766768205891,0.99913,87115.0,87081.0,1.47054]
[1766768206258,0.99913,87115.0,87083.0,1.47054]
[1766768206448,1.19913,87110.0,87082.0,0.01152]
[1766768207414,0.2,87100.0,87081.0,0.00035885]
[1766768207611,0.000549,87082.0,87072.0,0.01156]
[1766768207811,0.000549,87082.0,87063.0,1.47054]
[1766768207812,0.00035863,87082.0,87063.0,1.47054]
[1766768208599,0.00035863,87082.0,87064.0,0.05945873]
[1766768208878,0.98875,87101.0,87071.0,1.47054]
[1766768209178,1.18911,87110.0,87073.0,1.47054]
[1766768209350,1.18911,87110.0,87072.0,0.01156]
[1766768209731,0.2,87110.0,87073.0,1.47054]
[1766768210552,0.2,87110.0,87075.0,1.47054]
[1766768210758,0.2,87110.0,87075.0,1.47053995]
[1766768211121,0.01,87112.0,87075.0,1.47053995]
[1766768211254,0.2,87120.0,87074.0,0.01156]
[1766768211255,0.01,87119.0,87091.0,1.47054]
[1766768211457,0.2,87110.0,87091.0,1.47054]
[1766768211654,0.01,87119.0,87091.0,1.47054]
[1766768211886,0.2,87110.0,87091.0,1.47054]
[1766768212092,0.01,87119.0,87091.0,1.47054]
[1766768212675,0.98911,87118.0,87091.0,1.47054]
[1766768212947,0.2,87110.0,87091.0,1.47054]
[1766768213347,0.2,87110.0,87090.0,0.00025298]
[1766768213348,0.001099,87091.0,87090.0,0.00025298]
[1766768213528,0.01066157,87109.0,87090.0,0.00025298]
[1766768213728,0.2,87110.0,87090.0,0.00025298]
[1766768213729,0.62304157,87108.0,87090.0,2.98e-06]
[1766768213967,0.61238,87099.0,87090.0,2.98e-06]
[1766768214189,0.61238,87097.0,87090.0,2.98e-06]
[1766768214392,0.01066157,87096.0,87090.0,2.98e-06]
[1766768214725,0.61238,87095.0,87090.0,2.98e-06]
[1766768214926,0.62304157,87094.0,87090.0,2.98e-06]
[1766768215137,0.61238,87092.0,87071.0,0.01191863]
[1766768215353,0.01066157,87091.0,87071.0,0.01191863]
[1766768216575,0.01066157,87091.0,87071.0,1.48245863]
[1766768216753,0.61238,87103.0,87073.0,1.47054]
[1766768217354,0.01,87114.0,87075.0,1.47054]
[1766768217669,0.2,87120.0,87075.0,1.47054]
[1766768218081,0.61238,87119.0,87075.0,1.47054]
[1766768219089,0.61238,87119.0,87072.0,0.11424524]
[1766768219090,0.61238,87119.0,87080.0,0.66352307]
[1766768219286,0.61238,87119.0,87081.0,1.54845231]